bitfinex/quotes_ETHUSD_20241231
["timestamp","ask_amount","ask_price","bid_price","bid_amount"]
[1735684762861,0.7558,3346.3,3345.5,0.7114935]
[1735684762862,0.7558,3346.3,3345.5,3.7005435]
[1735684763053,0.7558,3346.3,3345.3,2.9892]
[1735684763562,0.7558,3346.3,3345.1,3.7515]
[1735684763719,0.7558,3346.3,3345.4,2.98917]
[1735684766839,0.7558,3346.3,3345.2,0.674098]
[1735684767057,0.7558,3346.3,3345.5,2.98905]
[1735684767565,0.7558,3346.3,3345.6,2.98895]
[1735684768670,0.7558,3346.3,3345.6,2.98894]
[1735684768974,0.7558,3346.3,3345.7,2.98888]
[1735684770729,0.7558,3346.3,3345.6,2.98898]
[1735684770934,0.7558,3346.3,3345.7,0.298898]
[1735684772229,0.7558,3346.3,3345.4,2.98916]
[1735684773229,0.7558,3346.3,3345.1,0.7515]
[1735684773434,0.7558,3346.3,3345.2,2.98935]
[1735684773634,0.7558,3346.3,3345.6,2.98899]
[1735684779572,0.7558,3346.3,3345.8,2.98879]
[1735684779771,0.7558,3346.3,3345.9,0.375519]
[1735684780373,0.7558,3346.3,3345.9,3.364239]
[1735684780940,0.7558,3346.3,3346.0,2.98859]
[1735684790084,0.8243,3346.8,3346.0,2.98859]
[1735684790286,0.8243,3346.8,3346.1,2.98854]
[1735684790488,0.8243,3346.8,3346.2,0.3364059]
[1735684794303,0.8243,3346.8,3346.2,3.3248559]
[1735684795318,0.8243,3346.8,3346.4,2.98827]
[1735684796010,0.8243,3346.8,3346.2,3.3248359]
[1735684796211,0.8243,3346.8,3346.3,2.98837]
[1735684797101,0.8243,3346.8,3346.2,0.3364059]
[1735684797304,0.8243,3346.8,3345.9,0.375519]
[1735684797679,0.8243,3346.8,3346.0,2.98861]
[1735684798515,0.8243,3346.8,3346.1,2.98852]
[1735684800318,0.8243,3346.8,3345.9,3.364209]
[1735684800551,3.14393198,3346.9,3345.9,0.375519]
[1735684800552,0.8243,3346.7,3345.9,0.375519]
[1735684800851,0.8243,3346.7,3346.0,0.795]
[1735684801026,0.8243,3346.7,3346.3,2.98837]
[1735684801323,0.8243,3346.7,3346.1,3.4044199]
[1735684801640,0.8243,3346.7,3346.1,0.4159299]
[1735684801918,0.7696,3347.0,3346.2,0.7672]
[1735684802224,1.24639487,3347.1,3347.0,2.98775]
[1735684802519,1.24639487,3347.1,3347.0,6.662045]
[1735684803922,0.7696,3347.8,3347.0,6.662045]
[1735684804136,0.7696,3347.8,3347.3,2.98744]
[1735684804438,0.7696,3347.8,3347.4,2.98739]
[1735684809518,0.7696,3347.8,3347.0,3.674295]
[1735684809833,0.7696,3347.8,3347.5,2.98729]
[1735684812642,0.7696,3348.4,3347.4,0.7672]
[1735684812940,0.7696,3348.4,3347.9,2.98694]
[1735684814748,0.7696,3348.4,3347.7,2.98708]
[1735684814960,0.7696,3348.4,3347.8,3.285728]
[1735684817215,0.7696,3348.4,3347.9,2.98692]
[1735684818227,0.9746076,3348.7,3348.0,3.74492]
[1735684818435,0.8186,3348.7,3348.1,2.98672]
[1735684819365,0.8186,3348.7,3348.0,0.7581]
[1735684819517,0.8186,3348.7,3348.3,2.98657]
[1735684822664,0.7686,3348.7,3348.3,2.98657]
[1735684824842,0.15599844,3349.1,3348.4,0.7581]
[1735684825720,0.8186,3349.0,3348.4,0.7581]
[1735684826557,0.8186,3349.0,3348.3,2.98657]
[1735684826713,0.8186,3349.0,3348.4,0.41490408]
[1735684828824,0.8186,3349.0,3348.5,2.98641]
[1735684829437,0.8186,3349.0,3348.4,2.98642]
[1735684830052,0.8186,3349.0,3348.2,0.7581]
[1735684830255,0.8186,3349.0,3348.4,2.98641]
[1735684831575,0.8186,3349.0,3348.2,0.7581]
[1735684831727,0.8186,3349.0,3348.5,2.9864]
[1735684832476,0.03503617,3348.9,3348.5,2.9864]
[1735684834492,0.03503617,3348.9,3348.3,0.374482]
[1735684834649,0.03503617,3348.9,3348.7,2.98619]
[1735684836277,0.80363617,3349.0,3348.7,2.98619]
[1735684836596,0.15595926,3349.6,3348.8,2.98609]
[1735684836797,0.03406763,3348.9,3348.8,2.98609]
[1735684836956,0.15595926,3349.6,3348.9,2.98604]
[1735684837290,0.03439293,3349.5,3348.9,2.98604]
[1735684837494,0.03439293,3349.5,3348.9,3.284644]
[1735684838392,0.03439293,3349.5,3348.9,0.298604]
[1735684838595,0.03439293,3349.5,3348.8,2.98606]
[1735684839399,0.8311,3349.4,3348.8,2.98606]
[1735684839896,0.03813007,3349.3,3348.8,2.98606]
[1735684844362,0.03813007,3349.3,3348.9,2.98604]
[1735684849302,0.03813007,3349.3,3348.4,0.7512]
[1735684849478,0.03813007,3349.3,3349.0,2.98591]
[1735684854442,0.03813007,3349.3,3349.0,2.98593]
[1735684855319,0.03813007,3349.3,3349.1,2.98587]
[1735684866867,0.03813007,3349.3,3348.8,0.7993]
[1735684867082,0.03813007,3349.3,3349.2,2.98578]
[1735684873255,1.24536928,3349.6,3349.4,2.98556]
[1735684874853,0.7628,3349.7,3349.4,2.98556]
[1735684875873,0.7628,3349.7,3349.4,3.284116]
[1735684876168,31.11836928,3349.8,3349.7,2.98534]
[1735684876731,31.74105393,3349.8,3349.7,2.98534]
[1735684878144,29.873,3349.8,3349.7,2.98534]
[1735684879442,29.91233184,3349.8,3349.7,2.98534]
[1735684879659,29.91233184,3349.8,3349.7,3.79253039]
[1735684883068,29.91233184,3349.8,3349.7,6.79253039]
[1735684883271,29.91233184,3349.8,3349.7,7.56443039]
[1735684883921,29.873,3349.8,3349.7,7.56443039]
[1735684884122,29.91258895,3349.8,3349.7,7.56443039]
[1735684887768,30.71948895,3349.8,3349.4,1.24852227]
[1735684888085,3.79242,3349.5,3349.4,1.24852227]
[1735684888304,0.55,3349.3,3348.9,3.12130567]
[1735684888443,4.37297144,3349.2,3349.1,4.54e-06]
[1735684888642,4.41301739,3349.2,3349.1,4.54e-06]
[1735684889579,4.11842595,3349.2,3349.1,4.54e-06]
[1735684889752,8.24200152,3349.2,3349.1,4.54e-06]
[1735684889954,8.24200152,3349.2,3347.2,2.98754]
[1735684889955,0.5426,3348.9,3347.2,2.98754]
[1735684890253,0.5426,3348.0,3347.2,2.98754]
[1735684890575,0.03907229,3347.9,3347.2,2.98754]
[1735684890785,0.03907229,3347.9,3347.3,0.298754]
[1735684891246,0.03907229,3347.9,3347.3,2.98747]
[1735684891247,1.24739385,3347.8,3347.3,2.98747]
[1735684891680,0.0389638,3347.7,3347.3,2.98747]
[1735684892386,0.0389638,3347.7,3347.0,3.0]
[1735684892564,0.0389638,3347.7,3347.2,3.0]
[1735684892801,1.03218175,3347.9,3347.3,0.598766]
[1735684893093,0.03671576,3347.6,3347.3,0.598766]
[1735684893299,1.03218175,3347.9,3347.5,2.98721]
[1735684893849,0.5426,3348.0,3347.5,2.98721]
[1735684894494,0.03676748,3347.9,3347.6,2.98721]
[1735684895790,0.03676748,3347.9,3347.7,0.298721]
[1735684895983,0.5426,3348.4,3347.4,0.55]
[1735684896199,0.03684868,3348.3,3347.4,0.55]
[1735684896577,0.03684868,3348.3,3347.7,2.98705]
[1735684898716,0.03684868,3348.3,3347.4,0.55]
[1735684899017,0.03684868,3348.3,3347.5,2.98727]
[1735684899190,0.03684868,3348.3,3347.5,3.9996156]
[1735684899805,0.03684868,3348.3,3347.6,2.98721]
[1735684901098,0.03684868,3348.3,3347.8,2.98696]
[1735684903390,0.5426,3348.7,3347.8,2.98696]
[1735684903590,0.03677773,3348.6,3347.8,2.98696]
[1735684906631,0.03677773,3348.6,3347.6,2.98719]
[1735684906834,0.03677773,3348.6,3347.7,0.53456356]
[1735684910370,0.5426,3348.5,3347.7,0.53456356]
[1735684910655,0.03670804,3348.4,3347.7,0.53456356]
[1735684911015,0.03670804,3348.4,3347.7,2.98711]
[1735684917239,0.03670804,3348.4,3347.8,2.98701]
[1735684921190,0.03670804,3348.4,3347.6,0.55]
[1735684921350,0.03670804,3348.4,3348.3,7.36749]
[1735684921680,1.24739385,3349.0,3348.9,7.32995]
[1735684921975,1.24739385,3349.2,3349.1,2.98587]
[1735684922280,1.24739385,3349.2,3349.1,6.53587]
[1735684923305,29.873,3349.8,3349.5,2.98548]
[1735684924296,0.03249397,3349.7,3349.5,2.98548]
[1735684924659,29.873,3349.8,3349.5,2.98548]
[1735684924989,0.03243976,3349.6,3349.5,2.98548]
[1735684925161,29.873,3349.8,3349.5,2.98548]
[1735684925355,0.03249397,3349.7,3349.5,2.98548]
[1735684925556,29.873,3349.8,3349.6,2.98543]
[1735684926984,29.873,3349.8,3349.7,2.98534]
[1735684931238,29.873,3349.8,3349.7,3.283874]
[1735684932269,29.873,3349.8,3349.7,6.833874]
[1735684932552,26.88774,3349.8,3349.7,7.627774]
[1735684932818,22.44429195,3349.8,3349.7,7.627774]
[1735684933410,20.95166195,3349.8,3349.7,7.627774]
[1735684933565,19.45903195,3349.8,3349.7,7.627774]
[1735684933766,17.96640195,3349.8,3349.7,7.627774]
[1735684934198,16.47377195,3349.8,3349.7,7.627774]
[1735684934505,14.98114195,3349.8,3349.7,7.627774]
[1735684934711,11.99588195,3349.8,3349.7,7.627774]
[1735684935711,9.01062195,3349.8,3349.7,7.627774]
[1735684935918,6.02536195,3349.8,3349.7,7.627774]
[1735684936118,4.53273195,3349.8,3349.7,7.627774]
[1735684936412,3.18e-06,3349.8,3349.7,7.627774]
[1735684936709,0.5426,3350.9,3350.5,2.98454]
[1735684937068,0.03297904,3350.8,3350.3,2.9848]
[1735684937269,0.03297904,3350.8,3350.5,2.98454]
[1735684937469,0.5426,3350.9,3350.5,2.98454]
[1735684937913,0.03297904,3350.8,3350.5,2.98454]
[1735684938229,0.5426,3350.9,3350.5,2.98454]
[1735684938923,0.167787,3351.1,3350.9,2.98419]
[1735684939075,0.167787,3351.1,3350.6,0.55]
[1735684939274,0.167787,3351.1,3350.9,2.9842]
[1735684940226,0.167787,3351.1,3350.6,3.0]
[1735684940412,0.167787,3351.1,3351.0,2.98418]
[1735684941376,0.167787,3351.1,3350.7,0.55]
[1735684941544,0.167787,3351.1,3350.8,2.98434]
[1735684941995,0.167787,3351.1,3350.4,2.98471]
[1735684941996,0.167787,3351.1,3350.9,2.98424]
[1735684942203,30.040787,3351.1,3350.9,2.98424]
[1735684944123,0.03376614,3351.0,3350.9,2.98424]
[1735684946223,0.03376614,3351.0,3350.9,3.832664]
[1735684946423,0.03376614,3351.0,3350.9,4.636564]
[1735684950391,0.03376614,3351.0,3350.9,3.832664]
[1735684950689,0.5426,3350.9,3348.9,2.17623393]
[1735684950820,0.5426,3350.0,3348.8,2.98612]
[1735684951026,0.03323255,3349.9,3349.0,3.0]
[1735684951225,0.03323255,3349.9,3348.9,2.98601]
[1735684951576,0.5426,3350.0,3349.1,0.55]
[1735684951784,0.5426,3350.0,3348.6,8.16246393]
[1735684951929,0.03290011,3349.9,3348.7,3.0]
[1735684952273,0.5426,3350.0,3348.8,0.55]
[1735684952444,0.03285672,3349.9,3348.7,2.98623]
[1735684952624,0.03285672,3349.9,3349.3,0.55]
[1735684953128,0.5426,3350.0,3349.2,0.55]
[1735684953538,0.5426,3350.0,3349.2,3.55]
[1735684953539,0.03243614,3349.9,3349.2,3.55]
[1735684955737,0.03243614,3349.9,3348.9,3.53597]
[1735684956142,0.5426,3350.0,3348.9,3.53597]
[1735684956347,0.03242017,3349.8,3349.1,0.55]
[1735684956559,0.03247438,3349.9,3349.1,0.55]
[1735684956760,0.03236596,3349.7,3349.1,0.55]
[1735684956960,0.03242017,3349.8,3349.1,0.55]
[1735684957172,0.5426,3350.0,3349.1,0.55]
[1735684957377,0.03250868,3349.7,3349.2,0.72917177]
[1735684957658,0.03169368,3349.6,3349.2,0.72917177]
[1735684957872,0.5426,3350.0,3349.2,0.72917177]
[1735684958182,0.03199902,3349.9,3349.2,0.72917177]
[1735684960550,0.5426,3349.8,3349.2,0.72917177]
[1735684960751,0.5426,3349.8,3349.0,0.55]
[1735684960949,0.03174789,3349.7,3349.0,0.55]
[1735684961262,0.5426,3349.8,3348.9,3.53602]
[1735684961484,0.03174789,3349.7,3348.9,3.53602]
[1735684961684,0.5426,3349.8,3348.9,3.53602]
[1735684961886,0.03174789,3349.7,3349.1,0.55]
[1735684962086,0.5426,3349.8,3349.1,0.55]
[1735684962398,0.03174789,3349.7,3349.1,0.55]
[1735684962694,0.5426,3349.8,3349.1,0.55]
[1735684963000,0.03174789,3349.7,3349.1,0.55]
[1735684963202,0.03174789,3349.7,3349.2,0.72917727]
[1735684963497,0.5426,3349.8,3349.2,0.72917727]
[1735684963656,0.03174789,3349.7,3349.2,0.72917727]
[1735684964741,0.5426,3349.6,3348.3,0.736749]
[1735684964924,0.5426,3349.2,3348.0,0.8224]
[1735684965130,0.5426,3349.2,3347.9,2.98692]
[1735684965326,0.03128993,3349.1,3348.0,0.380932]
[1735684965501,0.5426,3349.0,3348.0,0.380932]
[1735684965706,0.03134849,3348.9,3348.0,3.380932]
[1735684966941,0.03134849,3348.9,3348.0,3.367762]
[1735684967306,0.03134849,3348.9,3348.1,0.55]
[1735684967508,0.03134849,3348.9,3348.2,0.3917762]
[1735684968440,0.03134849,3348.9,3348.0,0.380932]
[1735684968739,0.5426,3348.7,3347.6,2.98716]
[1735684969111,0.03120517,3348.6,3347.7,0.55]
[1735684969345,0.03120517,3348.6,3347.4,2.98734]
[1735684969346,0.5426,3348.5,3347.4,2.98734]
[1735684969513,0.57302409,3348.5,3347.5,3.0]
[1735684970802,0.57302409,3348.5,3347.6,0.55]
[1735684971012,0.5426,3348.4,3347.6,0.55]
[1735684971440,0.5426,3348.2,3347.6,0.55]
[1735684971640,0.5426,3348.2,3347.6,1.203734]
[1735684971852,0.02898899,3348.1,3347.6,1.203734]
[1735684992526,0.5426,3348.2,3347.6,1.203734]
[1735684992751,0.02872526,3348.1,3347.6,1.203734]
[1735685006734,1.03059199,3348.0,3347.6,1.203734]
[1735685007080,0.02757588,3347.9,3347.6,1.203734]
[1735685007280,0.02757588,3347.9,3347.7,0.7191114]
[1735685007482,0.02757588,3347.9,3347.5,0.55]
[1735685010030,1.0318949,3347.8,3347.5,0.55]
[1735685010351,0.02746735,3347.7,3347.5,0.55]
[1735685011148,2.58205454,3347.6,3347.5,0.55]
[1735685011487,2.60946761,3347.6,3347.5,0.55]
[1735685011898,2.60946761,3347.6,3347.5,1.203738]
[1735685013328,3.85686146,3347.6,3347.5,1.203738]
[1735685016872,3.85686146,3347.6,3347.5,8.97580144]
[1735685017160,3.82944839,3347.6,3347.5,8.97580144]
[1735685018468,1.0318949,3348.3,3348.1,2.9867]
[1735685018675,1.0318949,3348.3,3348.2,0.55]
[1735685020113,2.27928875,3348.4,3348.2,0.55]
[1735685022046,2.27928875,3348.5,3348.2,0.55]
[1735685023846,2.27928875,3348.6,3348.2,0.55]
[1735685024297,2.27928875,3348.6,3348.4,0.55]
[1735685025417,1.24739385,3348.5,3348.4,0.55]
[1735685026901,1.24739385,3348.6,3348.4,0.55]
[1735685027702,1.24739385,3348.6,3348.4,0.42902]
[1735685028114,1.24739385,3348.6,3348.5,0.55]
[1735685029669,1.87109078,3348.8,3348.5,0.55]
[1735685029670,1.24739385,3348.8,3348.5,0.55]
[1735685030707,1.24739385,3348.8,3348.4,0.42902]
[1735685031069,1.24739385,3348.8,3348.4,0.55]
[1735685033418,1.24739385,3348.7,3348.4,0.55]
[1735685033617,1.24739385,3348.7,3348.1,0.7592]
[1735685033817,1.24739385,3348.7,3348.2,3.0]
[1735685034030,1.24739385,3348.7,3348.4,3.0]
[1735685034718,1.55015964,3348.7,3348.4,3.0]
[1735685035558,1.55015964,3348.7,3348.4,3.661037]
[1735685036106,2.27928875,3348.9,3348.4,3.661037]
[1735685036300,2.27928875,3348.9,3348.5,0.55]
[1735685036504,2.27928875,3348.9,3348.7,2.98619]
[1735685036728,2.27928875,3348.9,3348.8,2.98614]
[1735685037753,0.5426,3349.2,3348.8,2.98614]
[1735685040474,0.5426,3349.2,3348.8,3.360674]
[1735685040671,1.24739385,3349.4,3348.8,0.374534]
[1735685040889,1.24739385,3349.4,3348.7,0.55]
[1735685041092,1.24739385,3349.4,3349.0,2.98596]
[1735685041262,1.24739385,3349.4,3348.8,2.98613]
[1735685041462,1.87109078,3349.5,3348.9,2.98604]
[1735685041463,1.24739385,3349.5,3348.9,2.98604]
[1735685043192,2.79314935,3349.4,3348.9,2.98604]
[1735685043886,2.79314935,3349.4,3348.8,2.98609]
[1735685043887,3.6663625,3349.4,3348.8,2.98609]
[1735685044190,3.6663625,3349.4,3347.7,2.98706]
[1735685044191,1.03126344,3349.0,3348.1,2.98669]
[1735685044493,0.5426,3348.6,3347.7,2.9871]
[1735685044703,0.45601134,3348.5,3347.7,2.9871]
[1735685044867,0.5426,3348.4,3347.8,4.25691602]
[1735685045193,0.5426,3348.4,3347.8,1.25691602]
[1735685046062,0.5426,3348.3,3347.6,2.98719]
[1735685047465,0.5426,3348.3,3347.4,2.98738]
[1735685047797,0.5426,3348.1,3347.4,2.98738]
[1735685048953,0.5426,3348.1,3347.3,2.98746]
[1735685049169,2.57564385,3348.0,3347.3,2.98746]
[1735685050609,1.03050366,3348.0,3347.3,2.98746]
[1735685051799,1.24739385,3347.8,3347.3,2.98746]
[1735685053089,1.24739385,3347.9,3347.3,2.98746]
[1735685053823,2.27789751,3348.0,3347.3,2.98746]
[1735685054003,3.15111066,3348.0,3347.3,2.98746]
[1735685054905,3.82339848,3347.9,3347.3,2.98746]
[1735685055843,2.27789751,3347.9,3347.3,2.98746]
[1735685056905,0.5426,3347.8,3347.3,2.98746]
[1735685063650,0.5426,3347.8,3347.4,2.98738]
[1735685067147,0.5426,3347.4,3347.0,2.98767]
[1735685067352,0.5426,3347.4,3346.8,2.98789]
[1735685067551,0.5426,3347.4,3346.9,2.98782]
[1735685070779,0.5426,3347.4,3346.7,2.98796]
[1735685072242,0.5426,3347.4,3346.5,2.98815]
[1735685072442,0.5426,3347.3,3346.5,2.98815]
[1735685073544,1.57409267,3347.3,3346.5,2.98815]
[1735685074282,0.5426,3347.2,3346.5,2.98815]
[1735685074981,0.5426,3347.2,3346.0,4.03149267]
[1735685074982,2.98774,3347.1,3346.0,2.98855]
[1735685075156,0.5426,3346.2,3345.3,0.7522]
[1735685075358,0.5426,3346.2,3345.4,3.0]
[1735685075556,0.5426,3346.2,3345.3,0.7522]
[1735685075857,0.5426,3346.2,3345.4,2.98916]
[1735685076059,0.5426,3346.2,3345.4,3.363296]
[1735685076382,1.03149267,3346.1,3345.4,3.363296]
[1735685076584,0.5426,3346.2,3345.5,2.98907]
[1735685076780,0.5426,3346.9,3345.6,0.7569]
[1735685077005,1.57409267,3346.9,3345.9,0.55]
[1735685077209,0.5426,3346.9,3346.6,2.98809]
[1735685078088,1.87109078,3346.8,3346.6,2.98809]
[1735685078994,1.87109078,3346.8,3346.7,3.53801]
[1735685079200,1.87109078,3346.8,3346.7,6.53801]
[1735685079396,1.24250534,3347.6,3346.8,0.55]
[1735685079597,1.24250534,3347.6,3347.3,2.98745]
[1735685081217,0.69775013,3348.0,3347.3,2.98745]
[1735685081413,1.19043568,3348.0,3347.3,2.98745]
[1735685081923,1.19043568,3348.0,3347.0,0.55]
[1735685081924,0.69775013,3348.0,3347.0,0.55]
[1735685082090,0.69775013,3348.0,3347.4,2.98734]
[1735685082286,6.40936883,3348.4,3347.5,0.55]
[1735685082287,1.78510534,3348.4,3347.5,0.55]
[1735685082513,1.24250534,3348.4,3347.7,0.55]
[1735685082718,1.24250534,3348.4,3347.3,2.18034349]
[1735685082719,1.24250534,3348.4,3348.3,7.29349]
[1735685083226,1.24250534,3348.6,3348.5,2.98641]
[1735685084618,0.5426,3349.4,3348.6,2.98625]
[1735685088948,0.5426,3349.4,3348.7,2.9862]
[1735685089159,0.5426,3349.4,3348.8,0.29862]
[1735685089509,0.5426,3349.4,3348.7,2.9862]
[1735685103085,0.5426,3349.4,3348.8,3.0]
[1735685104993,0.5426,3349.4,3348.4,3.0]
[1735685105309,0.5426,3348.8,3347.1,3.74734]
[1735685105539,0.5426,3348.7,3347.9,2.9869]
[1735685106030,0.5426,3348.7,3348.0,3.0]
[1735685112943,0.5426,3348.7,3347.6,3.55]
[1735685113150,0.5426,3348.7,3348.0,2.98684]
[1735685114753,2.18034349,3348.6,3347.2,0.71845995]
[1735685114923,0.5426,3348.2,3347.5,2.98726]
[1735685115125,0.5426,3348.2,3347.3,2.98746]
[1735685116012,0.5426,3348.2,3347.4,3.0]
[1735685118865,0.5426,3348.1,3347.4,3.0]
[1735685119368,0.5426,3348.1,3347.2,3.0]
[1735685119570,0.5426,3347.9,3347.2,3.0]
[1735685120345,0.5426,3347.9,3347.2,2.98755]
[1735685123349,0.5426,3347.9,3347.4,3.0]
[1735685126282,0.5426,3347.9,3347.5,3.0]
[1735685126484,0.5426,3347.9,3347.6,2.98717]
[1735685126787,0.5426,3347.9,3347.6,3.368757]
[1735685127382,0.5426,3347.9,3347.7,2.98712]
[1735685127585,1.24250534,3348.1,3347.7,2.98712]
[1735685128143,1.78510534,3348.2,3347.7,2.98712]
[1735685129247,0.5426,3348.2,3347.7,2.98712]
[1735685137757,1.24250534,3348.4,3347.7,0.298712]
[1735685137971,1.24250534,3348.4,3348.3,3.77689]
[1735685139109,1.24250534,3348.9,3348.3,3.77689]
[1735685140077,1.24250534,3348.9,3348.3,0.7903]
[1735685140559,3.82117521,3349.1,3348.3,0.7903]
[1735685140763,4.99414856,3349.1,3348.3,0.7903]
[1735685141773,3.82117521,3349.0,3348.3,0.7903]
[1735685145791,3.82117521,3349.0,3348.3,3.77681]
[1735685145991,3.82117521,3349.0,3348.3,0.7903]
[1735685146198,3.82117521,3349.0,3348.4,2.98647]
[1735685146397,1.24250534,3348.9,3348.4,2.98647]
[1735685146599,1.24250534,3348.9,3348.4,3.364147]
[1735685147914,1.24250534,3349.0,3348.4,3.364147]
[1735685149516,1.24250534,3349.0,3348.4,0.377677]
[1735685149821,1.24250534,3349.0,3348.3,0.7903]
[1735685150219,1.24250534,3349.0,3348.3,3.77685]
[1735685150980,1.24250534,3349.0,3348.4,2.98649]
[1735685151176,1.24250534,3349.0,3348.5,0.8195]
[1735685151381,1.24250534,3349.0,3348.5,3.8059]
[1735685151621,1.24250534,3349.0,3348.6,0.38059]
[1735685152409,1.24250534,3349.0,3348.6,3.3669]
[1735685153325,1.24250534,3349.1,3348.6,3.3669]
[1735685153494,0.5426,3349.0,3348.3,2.98654]
[1735685153823,1.24250534,3349.1,3348.4,3.80599]
[1735685154525,1.87109078,3349.2,3348.4,3.80599]
[1735685154526,1.03130463,3348.9,3348.4,3.80599]
[1735685155319,1.03130463,3348.9,3348.5,2.98636]
[1735685155921,1.24250534,3349.0,3348.5,2.98636]
[1735685156122,1.24250534,3349.0,3348.5,3.366946]
[1735685156793,1.24250534,3349.1,3348.5,3.366946]
[1735685157012,1.24250534,3349.1,3348.6,0.8028]
[1735685163228,3.82358471,3349.1,3348.6,0.8028]
[1735685164398,3.82358471,3349.1,3347.8,1.03082948]
[1735685164399,1.57342948,3349.0,3348.0,0.7689]
[1735685164652,1.03082948,3348.7,3348.0,0.7689]
[1735685166008,2.58107937,3348.6,3348.0,0.7689]
[1735685167640,1.24250534,3348.6,3348.0,0.7689]
[1735685168622,1.24250534,3348.6,3348.0,3.75574]
[1735685171769,1.24250534,3348.5,3348.0,3.75574]
[1735685172063,1.24250534,3348.5,3348.0,4.131314]
[1735685174578,1.24250534,3348.4,3348.0,4.131314]
[1735685178573,1.78510534,3348.4,3348.0,0.7689]
[1735685178735,1.24250534,3348.4,3348.0,0.7689]
[1735685180195,1.24250534,3348.3,3348.0,0.7689]
[1735685180860,1.24250534,3348.3,3347.8,2.98696]
[1735685181338,0.5426,3348.2,3347.8,2.98696]
[1735685183017,3.82358471,3348.1,3347.8,2.98696]
[1735685183930,3.82358471,3348.1,3347.9,0.7736]
[1735685184075,3.82358471,3348.1,3348.0,2.98685]
[1735685185375,1.24250534,3348.3,3348.0,2.98685]
[1735685195039,1.24250534,3348.2,3348.0,2.98685]
[1735685196382,1.24250534,3348.2,3348.1,2.98676]
[1735685197468,1.24250534,3348.2,3347.9,0.7736]
[1735685197687,1.24250534,3348.3,3347.9,3.7605]
[1735685198691,2.27380997,3348.3,3347.9,3.7605]
[1735685200278,1.24250534,3348.2,3347.9,3.7605]
[1735685200569,1.24250534,3348.2,3347.9,4.435268]
[1735685202359,1.24250534,3348.2,3347.4,0.8257]
[1735685202562,1.24250534,3348.2,3347.7,2.98712]
[1735685203492,1.24250534,3348.1,3347.7,2.98712]
[1735685203644,2.27380997,3348.1,3347.7,2.98712]
[1735685204897,2.27380997,3348.0,3347.7,2.98712]
[1735685206709,2.27380997,3348.0,3347.8,0.8257]
[1735685206867,2.27380997,3348.0,3347.8,3.81273]
[1735685207050,1.24250534,3348.0,3347.8,3.81273]
[1735685208914,2.27380997,3348.0,3347.8,3.81273]
[1735685210218,1.03130463,3347.9,3347.8,3.81273]
[1735685211477,3.82358471,3347.9,3347.8,2.98703]
[1735685212497,2.27380997,3347.9,3347.8,2.98703]
[1735685213463,3.82358471,3347.9,3347.8,2.98703]
[1735685217055,3.82358471,3347.9,3347.6,2.9872]
[1735685218590,2.58107937,3347.8,3347.6,2.9872]
[1735685219763,1.03130463,3347.7,3347.6,2.9872]
[1735685220885,1.03130463,3347.7,3347.6,4.2907316]
[1735685221933,1.03130463,3347.7,3347.6,7.8407316]
[1735685222259,0.40494827,3348.1,3348.0,7.33855]
[1735685222407,1.10128479,3348.7,3348.6,3.55]
[1735685222615,1.10128479,3348.7,3348.6,6.03617048]
[1735685223433,4.79e-06,3348.7,3348.6,4.991661]
[1735685223758,4.79e-06,3348.7,3348.6,6.02249048]
[1735685224205,1.03082948,3349.9,3348.6,6.02249048]
[1735685224206,0.8075,3350.1,3349.4,2.98557]
[1735685225013,1.03082948,3350.0,3349.4,2.98557]
[1735685226358,0.8075,3350.3,3349.5,0.8017]
[1735685226534,1.03082948,3350.2,3349.5,2.98548]
[1735685226856,1.2302578,3350.2,3349.3,2.98562]
[1735685227053,1.2302578,3350.2,3349.4,2.98557]
[1735685228551,1.2302578,3350.2,3349.5,2.98549]
[1735685234091,0.19942832,3350.2,3349.5,2.98549]
[1735685234386,1.2302578,3350.2,3349.5,2.98549]
[1735685234587,0.8075,3350.3,3349.5,2.98549]
[1735685234748,1.03082948,3350.2,3349.3,0.55]
[1735685234932,1.03082948,3350.2,3349.7,2.98533]
[1735685235531,0.8075,3350.3,3349.7,2.98533]
[1735685235730,0.15595368,3350.5,3349.7,2.98533]
[1735685235731,0.15595368,3350.5,3349.8,0.8017]
[1735685236057,1.83832948,3350.6,3349.8,0.8017]
[1735685236256,0.8075,3350.6,3349.8,0.8017]
[1735685236560,0.8075,3350.6,3349.9,2.98509]
[1735685236731,1.83832948,3350.6,3349.9,2.98509]
[1735685236926,2.02216243,3350.6,3349.9,2.98509]
[1735685237852,1.83832948,3350.6,3349.9,2.98509]
[1735685239158,0.7714,3350.9,3350.1,2.98498]
[1735685239369,1.03082948,3350.8,3349.8,0.8017]
[1735685239535,1.03082948,3350.8,3350.2,2.98487]
[1735685240787,0.7714,3350.9,3350.2,2.98487]
[1735685240987,0.7714,3350.9,3350.3,0.8278]
[1735685242707,0.7714,3350.9,3350.3,3.81258]
[1735685246505,1.18675544,3351.0,3350.3,3.81258]
[1735685246677,1.18675544,3351.0,3350.4,0.381258]
[1735685249197,0.15592596,3351.0,3350.4,3.381258]
[1735685252929,31.07161648,3351.1,3350.4,3.365948]
[1735685255597,31.07161648,3351.1,3350.4,2.98469]
[1735685256913,30.040787,3351.1,3350.4,2.98469]
[1735685257113,31.07161648,3351.1,3350.4,2.98469]
[1735685265688,30.040787,3351.1,3350.4,2.98469]
[1735685266187,1.03082948,3351.0,3350.4,2.98469]
[1735685271381,30.040787,3351.1,3350.4,3.365939]
[1735685271687,30.040787,3351.1,3350.5,0.7885]
[1735685275516,30.040787,3351.1,3350.9,0.7885]
[1735685275823,30.040787,3351.1,3351.0,2.98418]
[1735685276112,30.040787,3351.1,3351.0,3.77268]
[1735685276113,31.28883144,3351.1,3351.0,3.77268]
[1735685276324,31.28883144,3351.1,3351.0,4.448389]
[1735685277503,30.040787,3351.1,3351.0,4.448389]
[1735685285433,30.040787,3351.1,3351.0,3.77268]